fUSD/lending_fUSD_20251105
["ID","MTS","AMOUNT","RATE_DAILY","PERIOD"]
[393190044,1762307450014,-151.0,0.00032308,31]
[393190045,1762307450027,-151.0,0.00032308,31]
[393190046,1762307450037,-151.0,0.00032308,31]
[393190047,1762307450047,-151.0,0.00032308,31]
[393190048,1762307450056,-151.0,0.00032308,31]
[393190049,1762307450066,-151.0,0.00032308,31]
[393190050,1762307450075,-151.0,0.00032308,31]
[393190051,1762307450084,-239.252496,0.00032308,30]
[393190052,1762307450094,-151.0,0.00032308,31]
[393190053,1762307450103,-151.0,0.00032308,31]
[393190054,1762307450113,-151.0,0.00032308,31]
[393190055,1762307450122,-151.0,0.00032308,31]
[393190056,1762307450130,-151.0,0.00032308,31]
[393190057,1762307450140,-6473.0,0.00032308,2]
[393190058,1762307450149,-561.824,0.00032308,2]
[393190059,1762307450158,-6656.0,0.00032308,2]
[393190060,1762307450169,-2141.0,0.00032308,2]
[393190061,1762307450179,-500.0,0.00032399,120]
[393190062,1762307450188,-500.0,0.00032399,120]
[393190063,1762307450202,-500.0,0.00032399,120]
[393190064,1762307450212,-500.0,0.00032399,30]
[393190065,1762307450221,-500.0,0.00032399,120]
[393190066,1762307450231,-151.0,0.00032399,31]
[393190067,1762307450240,-151.0,0.00032399,31]
[393190068,1762307450249,-698.28,0.00032451,2]
[393190069,1762307450258,-350.72762754,0.00032486,2]
[393190070,1762307450267,-1204.91,0.00032531,2]
[393190071,1762307450280,-1204.91,0.00032531,2]
[393190072,1762307450289,-1204.91,0.00032531,2]
[393190073,1762307450299,-2307.91,0.00032531,2]
[393190074,1762307450309,-1204.91,0.00032531,2]
[393190075,1762307450320,-151.0,0.00032567,31]
[393190076,1762307450329,-151.0,0.00032567,31]
[393190077,1762307450339,-152.0,0.00032618,9]
[393190078,1762307450349,-196.0,0.0003262,2]
[393190079,1762307450358,-415.53,0.00032725,2]
[393190080,1762307450367,-415.53,0.00032725,2]
[393190081,1762307450377,-424.43,0.00032725,2]
[393190082,1762307450388,-415.53,0.00032725,2]
[393190083,1762307450397,-156.72,0.00032732,30]
[393190084,1762307450406,-39257.2413835,0.00032799,2]
[393190085,1762307450415,-406.610533,0.00032856,31]
[393190086,1762307450424,-406.610533,0.00032856,31]
[393190087,1762307450433,-406.610533,0.00032856,31]
[393190088,1762307450443,-406.610533,0.00032856,31]
[393190089,1762307450452,-151.0,0.00032856,31]
[393190090,1762307450461,-151.0,0.00032856,31]
[393190091,1762307450471,-151.0,0.00032856,31]
[393190092,1762307450484,-151.0,0.00032856,31]
[393190093,1762307450493,-151.0,0.00032856,31]
[393190094,1762307450503,-211.0,0.0003286,30]
[393190095,1762307450512,-151.0,0.00032866,31]
[393190096,1762307450522,-151.0,0.00032866,31]
[393190097,1762307450531,-500.0,0.00032875,120]
[393190098,1762307450542,-500.0,0.00032875,120]
[393190099,1762307450551,-500.0,0.00032875,30]
[393190100,1762307450561,-500.0,0.00032875,120]
[393190101,1762307450571,-500.0,0.00032875,120]
[393190102,1762307450580,-151.0,0.00032875,31]
[393190103,1762307450590,-151.0,0.00032875,31]
[393190104,1762307450600,-500.0,0.00032875,120]
[393190105,1762307450609,-500.0,0.00032876,120]
[393190106,1762307450618,-218.34072984,0.00032876,2]
[393190107,1762307450627,-500.0,0.00032876,2]
[393190108,1762307450638,-500.0,0.00032876,2]
[393190109,1762307450647,-500.0,0.00032876,2]
[393190110,1762307450657,-500.36596074,0.00032876,2]
[393190111,1762307450668,-500.0,0.00032876,2]
[393190112,1762307450681,-500.0,0.00032876,2]
[393190113,1762307450693,-500.0,0.00032876,2]
[393190114,1762307450703,-500.0,0.00032876,2]
[393190115,1762307450712,-500.0,0.00032876,2]
[393190116,1762307450722,-500.0,0.00032876,2]
[393190117,1762307450731,-500.0,0.00032876,2]
[393190118,1762307450740,-500.0,0.00032876,2]
[393190119,1762307450750,-416.85710612,0.00032876,2]
[393190120,1762307450760,-500.0,0.00032876,120]
[393190121,1762307450770,-504.56981096,0.00032876,120]
[393190122,1762307450780,-151.0,0.00032876,31]
[393190123,1762307450789,-406.610533,0.00032876,31]
[393190124,1762307450800,-406.610533,0.00032876,31]
[393190125,1762307450811,-406.610533,0.00032876,31]
[393190126,1762307450822,-406.610533,0.00032876,31]
[393190127,1762307450832,-177.898315,0.00032876,31]
[393190128,1762307450842,-151.0,0.00032876,31]
[393190129,1762307450852,-151.0,0.00032876,31]
[393190130,1762307450861,-151.0,0.00032876,31]
[393190131,1762307450871,-151.0,0.00032876,31]
[393190132,1762307450884,-500.0,0.00032876,10]
[393190133,1762307450894,-500.0,0.00032876,10]
[393190134,1762307450904,-500.0,0.00032876,10]
[393190135,1762307450913,-500.0,0.00032876,10]
[393190136,1762307450923,-500.0,0.00032876,10]
[393190137,1762307450934,-500.0,0.00032876,10]
[393190138,1762307450953,-500.0,0.00032876,10]
[393190139,1762307450964,-500.0,0.00032876,10]
[393190140,1762307450974,-500.0,0.00032876,10]
[393190141,1762307450985,-171.45858457,0.00032876,10]
[393190142,1762307450996,-421.82624568,0.00032876,2]
[393190143,1762307451008,-500.0,0.00032876,2]
[393190144,1762307451020,-500.0,0.00032876,2]
[393190145,1762307451030,-500.0,0.00032876,2]
[393190146,1762307451040,-500.0,0.00032876,2]
[393190147,1762307451051,-500.0,0.00032876,2]
[393190148,1762307451061,-402.19211532,0.00032876,2]
[393190149,1762307451071,-1000.0,0.00032876,2]
[393190150,1762307451081,-1000.0,0.00032876,2]
[393190151,1762307451091,-1000.0,0.00032876,2]
[393190152,1762307451104,-1000.0,0.00032876,2]
[393190153,1762307451115,-1000.0,0.00032876,2]
[393190154,1762307451126,-250.79016794,0.00032876,2]
[393190155,1762307451138,-500.0,0.00032876,2]
[393190156,1762307451149,-500.0,0.00032876,2]
[393190157,1762307451160,-500.0,0.00032876,2]
[393190158,1762307451171,-500.0,0.00032876,2]
[393190159,1762307451181,-500.0,0.00032876,2]
[393190160,1762307451191,-500.0,0.00032876,2]
[393190161,1762307451202,-500.0,0.00032876,2]
[393190162,1762307451212,-500.0,0.00032876,2]
[393190163,1762307451222,-500.0,0.00032876,2]
[393190164,1762307451232,-500.0,0.00032876,2]
[393190165,1762307451242,-500.0,0.00032876,2]
[393190166,1762307451253,-500.0,0.00032876,2]
[393190167,1762307451263,-500.0,0.00032876,2]
[393190168,1762307451274,-500.0,0.00032876,2]
[393190169,1762307451284,-500.0,0.00032876,2]
[393190170,1762307451296,-500.0,0.00032876,2]
[393190171,1762307451310,-500.0,0.00032876,2]
[393190172,1762307451322,-500.0,0.00032876,2]
[393190173,1762307451333,-500.0,0.00032876,2]
[393190174,1762307451343,-500.0,0.00032876,2]
[393190175,1762307451353,-500.0,0.00032876,2]
[393190176,1762307451363,-500.0,0.00032876,2]
[393190177,1762307451373,-193.00321115,0.00032876,2]
[393190178,1762307451382,-999.0,0.00032876,120]
[393190179,1762307451392,-5195.66,0.00032876,2]
[393190180,1762307451401,-5195.66,0.00032876,2]
[393190181,1762307451412,-5195.66,0.00032876,2]
[393190182,1762307451422,-5195.66,0.00032876,2]
[393190183,1762307451432,-5195.66,0.00032876,2]
[393190184,1762307451442,-5195.66,0.00032876,2]
[393190185,1762307451453,-5195.66,0.00032876,2]
[393190186,1762307451462,-5195.66,0.00032876,2]
[393190187,1762307451472,-5195.66,0.00032876,2]
[393190188,1762307451482,-5195.66,0.00032876,2]
[393190189,1762307451491,-5195.66,0.00032876,2]
[393190190,1762307451501,-5195.66,0.00032876,2]
[393190191,1762307451511,-5195.66,0.00032876,2]
[393190192,1762307451520,-5195.66,0.00032876,2]
[393190193,1762307451530,-5195.66,0.00032876,2]
[393190194,1762307451539,-5195.66,0.00032876,2]
[393190195,1762307451549,-5195.66,0.00032876,2]
[393190196,1762307451559,-5195.66,0.00032876,2]
[393190197,1762307451568,-5195.66,0.00032876,2]
[393190198,1762307451578,-5195.66,0.00032876,2]
[393190199,1762307451587,-5195.66,0.00032876,2]
[393190200,1762307451596,-5195.66,0.00032876,2]
[393190201,1762307451605,-5195.66,0.00032876,2]
[393190202,1762307451615,-5195.76942673,0.00032876,2]
[393190203,1762307451625,-300.0,0.00032876,2]
[393190204,1762307451634,-300.0,0.00032876,2]
[393190205,1762307451643,-300.0,0.00032876,2]
[393190206,1762307451652,-300.0,0.00032876,2]
[393190207,1762307451662,-300.0,0.00032876,2]
[393190208,1762307451671,-300.0,0.00032876,2]
[393190209,1762307451680,-300.0,0.00032876,2]
[393190210,1762307451689,-300.0,0.00032876,2]
[393190211,1762307451701,-150.0,0.00032877,5]
[393190212,1762307451710,-12590.43521086,0.00032882,2]
[393190213,1762307451719,-19224.7083865,0.00032891,2]
[393190214,1762307451729,-151.0,0.00033,7]
[393190215,1762307451738,-620.0,0.00033,7]
[393190216,1762307451747,-157.0,0.00033,45]
[393190217,1762307451756,-157.0,0.00033,45]
[393190218,1762307451766,-151.0,0.00033,31]
[393190219,1762307451775,-477.65212186,0.00033,120]
[393190220,1762307451785,-166.0,0.00033,14]
[393190221,1762307451794,-160.0,0.00033,120]
[393190222,1762307451804,-28743.0,0.00033,2]
[393190223,1762307451813,-698.28,0.00033026,2]
[393190224,1762307451823,-1232.1099442,0.0003303,2]
[393190225,1762307451832,-500.0,0.00033037,120]
[393190226,1762307451842,-152.0,0.00033045,10]
[393190227,1762307451851,-500.0,0.00033105,2]
[393190228,1762307451861,-231.891084,0.00033148,31]
[393190229,1762307451871,-151.0,0.00033148,31]
[393190230,1762307451880,-166.0,0.00033151,30]
[393190231,1762307451889,-150.0,0.00033158,20]
[393190232,1762307451899,-406.610533,0.00033159,31]
[393190233,1762307451908,-406.610533,0.00033159,31]
[393190234,1762307451919,-406.610533,0.00033159,31]
[393190235,1762307451929,-406.610538,0.00033159,31]
[393190236,1762307451940,-151.0,0.00033159,31]
[393190237,1762307451954,-151.0,0.00033159,31]
[393190238,1762307451964,-151.0,0.00033159,31]
[393190239,1762307451974,-151.0,0.00033159,31]
[393190240,1762307451986,-397.3,0.00033165,2]
[393190241,1762307451998,-2480.83,0.000332,2]
[393190242,1762307452009,-300.54543666,0.00033384,3]
[393190243,1762307452022,-11823.29191324,0.00033388,2]
[393190244,1762307452036,-698.28,0.0003341,2]
[393190245,1762307452046,-698.28,0.0003341,2]
[393190246,1762307452057,-698.28,0.0003341,2]
[393190247,1762307452068,-698.28,0.0003341,2]
[393190248,1762307452079,-183.45,0.0003341,2]
[393190249,1762307452089,-203.91108501,0.00033425,5]
[393190250,1762307452099,-350.72762749,0.00033434,2]
[393190251,1762307452110,-152.0,0.00033471,11]
[393190252,1762307452120,-578.61,0.00033509,2]
[393190253,1762307452131,-1204.91,0.00033509,2]
[393190254,1762307452140,-1204.91,0.00033509,2]
[393190255,1762307452150,-863.58,0.00033547,2]
[393190256,1762307452160,-150.0,0.00033547,2]
[393190257,1762307452169,-8759.4745568,0.00033629,2]
[393190258,1762307452180,-217.2,0.00033648,2]
[393190259,1762307452191,-5515.0,0.000337,3]
[393190260,1762307452207,-4289.6122611,0.00033722,2]
[393190261,1762307452218,-1613.0,0.00033735,2]
[393190262,1762307452229,-150.0,0.0003375,7]
[393190263,1762307452238,-2480.83,0.000338,2]
[393190264,1762307452247,-274.9208891,0.00033893,2]
[393190265,1762307452257,-152.0,0.00033897,12]
[393190266,1762307452267,-594.82279831,0.00033904,2]
[393190267,1762307452277,-500.0,0.00033999,120]
[393190268,1762307452287,-500.0,0.00033999,30]
[393190269,1762307452297,-500.0,0.00033999,120]
[393190270,1762307452306,-151.0,0.00034,7]
[393190271,1762307452495,-477.24963372,0.00034,30]
[393190272,1762307452505,-300.0,0.00034024,7]
[393190273,1762307452515,-168.97,0.0003404,2]
[393190274,1762307452523,-156.72,0.00034118,30]
[393190275,1762307452533,-500.0,0.0003413,120]
[393190276,1762307452543,-500.0,0.0003414,120]
[393190277,1762307452553,-500.0,0.0003414,30]
[393190278,1762307452563,-500.0,0.0003414,120]
[393190279,1762307452572,-373.08,0.00034149,120]
[393190280,1762307452581,-500.0,0.00034149,120]
[393190281,1762307452591,-500.0,0.00034149,120]
[393190282,1762307452600,-500.0,0.00034149,120]
[393190283,1762307452609,-500.0,0.00034149,120]
[393190284,1762307452618,-500.0,0.00034149,120]
[393190285,1762307452628,-500.0,0.00034149,120]
[393190286,1762307452638,-341.25163155,0.00034186,2]
[393190287,1762307452648,-202.500631,0.000342,9]
[393190288,1762307452657,-2480.83,0.000343,2]
[393190289,1762307452667,-152.0,0.00034324,13]
[393190290,1762307452676,-476.93,0.00034363,2]
[393190291,1762307452685,-476.93,0.00034363,2]
[393190292,1762307452698,-476.93,0.00034363,2]
[393190293,1762307452707,-476.93,0.00034363,2]
[393190294,1762307452718,-475.89,0.00034363,2]
[393190295,1762307452726,-500.0,0.00034368,120]
[393190296,1762307452735,-698.28,0.00034369,2]
[393190297,1762307452744,-728.24,0.00034369,2]
[393190298,1762307452753,-698.28,0.00034369,2]
[393190299,1762307452762,-698.28,0.00034369,2]
[393190300,1762307452771,-698.28,0.00034369,2]
[393190301,1762307452780,-698.28,0.00034369,2]
[393190302,1762307452790,-698.28,0.00034369,2]
[393190303,1762307452799,-698.28,0.00034369,2]
[393190304,1762307452808,-698.28,0.00034369,2]
[393190305,1762307452817,-698.28,0.00034369,2]
[393190306,1762307452826,-698.28,0.00034369,2]
[393190307,1762307452835,-698.28,0.00034369,2]
[393190308,1762307452845,-698.28,0.00034369,2]
[393190309,1762307452854,-698.28,0.00034369,2]
[393190310,1762307452863,-698.28,0.00034369,2]
[393190311,1762307452873,-698.28,0.00034369,2]
[393190312,1762307452882,-698.28,0.00034369,2]
[393190313,1762307452892,-698.28,0.00034369,2]
[393190314,1762307452901,-698.28,0.00034369,2]
[393190315,1762307452910,-698.28,0.00034369,2]
[393190316,1762307452919,-698.28,0.00034369,2]
[393190317,1762307452929,-698.28,0.00034369,2]
[393190318,1762307452940,-698.28,0.00034369,2]
[393190319,1762307452955,-698.28,0.00034369,2]
[393190320,1762307452964,-698.28,0.00034369,2]
[393190321,1762307452973,-698.28,0.00034369,2]
[393190322,1762307452984,-415.53,0.00034369,2]
[393190323,1762307452993,-415.53,0.00034369,2]
[393190324,1762307453002,-152.0,0.00034369,2]
[393190325,1762307453012,-415.53,0.00034369,2]
[393190326,1762307453022,-150.0,0.00034369,2]
[393190327,1762307453031,-415.53,0.00034369,2]
[393190328,1762307453040,-415.53,0.00034369,2]
[393190329,1762307453051,-150.0,0.00034369,2]
[393190330,1762307453061,-415.53,0.00034369,2]
[393190331,1762307453070,-415.53,0.00034369,2]
[393190332,1762307453080,-415.53,0.00034369,2]
[393190333,1762307453089,-415.53,0.00034369,2]
[393190334,1762307453099,-415.53,0.00034369,2]
[393190335,1762307453109,-415.53,0.00034369,2]
[393190336,1762307453119,-415.53,0.00034369,2]
[393190337,1762307453129,-415.53,0.00034369,2]
[393190338,1762307453139,-415.53,0.00034369,2]
[393190339,1762307453150,-415.53,0.00034369,2]
[393190340,1762307453160,-432.42,0.00034369,2]
[393190341,1762307453170,-415.53,0.00034369,2]
[393190342,1762307453181,-415.53,0.00034369,2]
[393190343,1762307453192,-415.53,0.00034369,2]
[393190344,1762307453206,-415.53,0.00034369,2]
[393190345,1762307453216,-415.53,0.00034369,2]
[393190346,1762307453227,-415.53,0.00034369,2]
[393190347,1762307453239,-415.53,0.00034369,2]
[393190348,1762307453249,-415.53,0.00034369,2]
[393190349,1762307453259,-337.94,0.00034369,2]
[393190350,1762307453270,-168.97,0.00034369,2]
[393190351,1762307453281,-415.53,0.00034369,2]
[393190352,1762307453292,-168.97,0.00034369,2]
[393190353,1762307453304,-415.53,0.00034369,2]
[393190354,1762307453315,-168.97,0.00034369,2]
[393190355,1762307453326,-971.47,0.00034369,2]
[393190356,1762307453336,-168.97,0.00034369,2]
[393190357,1762307453348,-168.97,0.00034369,2]
[393190358,1762307453359,-168.97,0.00034369,2]
[393190359,1762307453370,-150.0,0.00034376,2]
[393190360,1762307453381,-150.0,0.00034376,2]
[393190361,1762307453392,-150.0,0.00034376,2]
[393190362,1762307453402,-356.82,0.00034379,2]
[393190363,1762307453412,-350.72762749,0.00034381,2]
[393190364,1762307453424,-5515.0,0.000344,5]
[393190365,1762307453434,-929.38,0.0003451,120]
[393190366,1762307453447,-166.0,0.00034521,30]
[393190367,1762307453457,-3626.0,0.00034531,3]
[393190368,1762307453467,-12590.43521086,0.00034646,2]
[393190369,1762307453477,-152.0,0.0003475,14]
[393190370,1762307453487,-176.84,0.00034862,2]
[393190371,1762307453497,-695.64,0.00034867,30]
[393190372,1762307453507,-211.0,0.0003488,30]
[393190373,1762307453517,-305.23,0.00034917,2]
[393190374,1762307453527,-11823.29191324,0.00034983,2]
[393190375,1762307453536,-151.0,0.00035,5]
[393190376,1762307453546,-151.0,0.00035,7]
[393190377,1762307453555,-151.0,0.00035,7]
[393190378,1762307453566,-1000.0,0.00035,10]
[393190379,1762307453577,-232.32,0.00035,2]
[393190380,1762307453587,-20467.8,0.00035,14]
[393190381,1762307453598,-3312.00102345,0.00035,2]
[393190382,1762307453608,-1000.0,0.00035073,2]
[393190383,1762307453618,-2000.0,0.000351,2]
[393190384,1762307453628,-217.2,0.00035111,2]
[393190385,1762307453638,-162.32794439,0.00035143,2]
[393190386,1762307453648,-152.0,0.00035177,15]
[393190387,1762307453659,-341.53,0.00035191,2]
[393190388,1762307453669,-336.62,0.00035191,2]
[393190389,1762307453679,-353.68,0.00035191,2]
[393190390,1762307453691,-176.84,0.00035191,2]
[393190391,1762307453706,-176.84,0.00035191,2]
[393190392,1762307453717,-176.84,0.00035191,2]
[393190393,1762307453727,-176.84,0.00035191,2]
[393190394,1762307453737,-176.84,0.00035191,2]
[393190395,1762307453748,-176.84,0.00035191,2]
[393190396,1762307453759,-176.84,0.00035191,2]
[393190397,1762307453769,-176.84,0.00035191,2]
[393190398,1762307453779,-353.54,0.00035191,2]
[393190399,1762307453789,-176.84,0.00035191,2]
[393190400,1762307453799,-150.0,0.00035198,2]
[393190401,1762307453810,-150.0,0.00035198,2]
[393190402,1762307453820,-150.0,0.00035198,2]
[393190403,1762307453830,-150.0,0.00035198,2]
[393190404,1762307453840,-150.0,0.00035198,2]
[393190405,1762307453851,-150.0,0.00035198,2]
[393190406,1762307453860,-150.0,0.00035198,2]
[393190407,1762307453870,-150.0,0.00035198,2]
[393190408,1762307453881,-150.0,0.00035198,2]
[393190409,1762307453892,-150.0,0.00035198,2]
[393190410,1762307453903,-150.0,0.00035198,2]
[393190411,1762307453913,-150.0,0.00035198,2]
[393190412,1762307453923,-150.0,0.00035198,2]
[393190413,1762307453934,-150.0,0.00035198,2]
[393190414,1762307453949,-150.0,0.00035198,2]
[393190415,1762307453959,-150.0,0.00035198,2]
[393190416,1762307453969,-150.0,0.00035198,2]
[393190417,1762307453980,-150.0,0.00035198,2]
[393190418,1762307453990,-150.0,0.00035198,2]
[393190419,1762307454001,-150.0,0.00035198,2]
[393190420,1762307454011,-150.0,0.00035198,2]
[393190421,1762307454021,-408.18,0.00035198,2]
[393190422,1762307454032,-2225.98,0.00035228,2]
[393190423,1762307454042,-568.213,0.00035308,2]
[393190424,1762307454052,-574.0,0.00035308,2]
[393190425,1762307454062,-607.0,0.00035308,2]
[393190426,1762307454072,-1315.0,0.00035308,2]
[393190427,1762307454083,-1379.123,0.00035308,2]
[393190428,1762307454092,-820.0,0.00035308,2]
[393190429,1762307454102,-1272.0,0.00035308,2]
[393190430,1762307454112,-812.0,0.00035308,2]
[393190431,1762307454122,-6473.0,0.00035308,2]
[393190432,1762307454133,-559.0,0.00035308,2]
[393190433,1762307454143,-6159.001,0.00035308,2]
[393190434,1762307454154,-2141.0,0.00035308,2]
[393190435,1762307454163,-500.0,0.00035327,120]
[393190436,1762307454173,-712.25,0.00035328,2]
[393190437,1762307454183,-698.28,0.00035328,2]
[393190438,1762307454193,-698.28,0.00035328,2]
[393190439,1762307454205,-698.28,0.00035328,2]
[393190440,1762307454215,-350.72762749,0.00035329,2]
[393190441,1762307454225,-163.26,0.000354,14]
[393190442,1762307454235,-476.55,0.00035407,2]
[393190443,1762307454245,-156.72,0.00035503,60]
[393190444,1762307454255,-155.9,0.00035525,60]
[393190445,1762307454266,-155.48,0.00035569,60]
[393190446,1762307454277,-152.0,0.00035603,16]
[393190447,1762307454288,-215.82,0.00035614,120]
[393190448,1762307454299,-564.88,0.00035614,30]
[393190449,1762307454309,-500.0,0.00035614,120]
[393190450,1762307454320,-500.0,0.00035616,120]
[393190451,1762307454331,-500.0,0.00035616,120]
[393190452,1762307454341,-500.0,0.00035616,120]
[393190453,1762307454351,-500.0,0.00035616,120]
[393190454,1762307454361,-500.0,0.00035616,120]
[393190455,1762307454370,-500.0,0.00035616,120]
[393190456,1762307454380,-500.0,0.00035616,120]
[393190457,1762307454390,-500.0,0.00035616,120]
[393190458,1762307454399,-500.0,0.00035616,120]
[393190459,1762307454409,-500.0,0.00035616,120]
[393190460,1762307454419,-500.0,0.00035616,120]
[393190461,1762307454428,-500.0,0.00035616,120]
[393190462,1762307454437,-500.0,0.00035616,120]
[393190463,1762307454449,-500.0,0.00035616,120]
[393190464,1762307454459,-500.0,0.00035616,120]
[393190465,1762307454468,-500.0,0.00035616,120]
[393190466,1762307454478,-518.2817857,0.00035616,120]
[393190467,1762307454487,-999.0,0.00035616,120]
[393190468,1762307454496,-1000.0,0.00035616,5]
[393190469,1762307454506,-159.414309,0.00035616,31]
[393190470,1762307454515,-155.9,0.00035625,60]
[393190471,1762307454524,-500.0,0.00035668,120]
[393190472,1762307454534,-155.48,0.00035669,60]
[393190473,1762307454543,-155.9,0.00035725,60]
[393190474,1762307454552,-155.48,0.00035769,60]
[393190475,1762307454561,-155.9,0.00035825,60]
[393190476,1762307454571,-155.5,0.00035869,60]
[393190477,1762307454580,-501.72880029,0.00035909,2]
[393190478,1762307454589,-155.9,0.00035925,60]
[393190479,1762307454598,-850.71467261,0.00036,2]
[393190480,1762307454608,-151.0,0.00036,7]
[393190481,1762307454617,-179.0,0.00036,2]
[393190482,1762307454626,-237.23,0.00036012,2]
[393190483,1762307454635,-155.9,0.00036025,60]
[393190484,1762307454644,-152.0,0.00036029,17]
[393190485,1762307454653,-594.82279831,0.00036036,2]
[393190486,1762307454662,-150.59,0.00036092,2]
[393190487,1762307454671,-318.72,0.00036092,2]
[393190488,1762307454682,-150.0,0.00036092,2]
[393190489,1762307454691,-150.0,0.00036092,2]
[393190490,1762307454703,-150.0,0.00036092,2]
[393190491,1762307454712,-150.0,0.00036092,2]
[393190492,1762307454721,-155.9,0.00036125,60]
[393190493,1762307454730,-200.0,0.000362,12]
[393190494,1762307454740,-155.9,0.00036225,60]
[393190495,1762307454750,-167.0,0.00036247,30]
[393190496,1762307454759,-350.72762749,0.00036276,2]
[393190497,1762307454768,-155.9,0.00036325,60]
[393190498,1762307454777,-476.93,0.00036366,2]
[393190499,1762307454786,-783.22,0.00036366,2]
[393190500,1762307454796,-496.43608315,0.00036373,16]
[393190501,1762307454805,-12590.43521086,0.00036409,2]
[393190502,1762307454814,-155.9,0.00036425,60]
[393190503,1762307454823,-152.0,0.00036456,18]
[393190504,1762307454833,-202.36431638,0.000365,120]
[393190505,1762307454842,-548.97,0.00036506,2]
[393190506,1762307454851,-155.9,0.00036525,60]
[393190507,1762307454860,-217.2,0.00036573,2]
[393190508,1762307454870,-11823.29191324,0.00036577,2]
[393190509,1762307454879,-155.9,0.00036625,60]
[393190510,1762307454889,-2258.0,0.00036648,2]
[393190511,1762307454898,-155.9,0.00036725,60]
[393190512,1762307454908,-3715.87080708,0.000368,14]
[393190513,1762307454917,-155.9,0.00036825,60]
[393190514,1762307454926,-300.0,0.00036829,2]
[393190515,1762307454935,-500.0,0.00036834,120]
[393190516,1762307454952,-176.84,0.00036834,2]
[393190517,1762307454961,-176.84,0.00036834,2]
[393190518,1762307454971,-176.84,0.00036834,2]
[393190519,1762307454981,-176.84,0.00036834,2]
[393190520,1762307454991,-180.68,0.00036834,2]
[393190521,1762307455039,-176.84,0.00036834,2]
[393190522,1762307455048,-176.84,0.00036834,2]
[393190523,1762307455056,-176.84,0.00036834,2]
[393190524,1762307455066,-176.84,0.00036834,2]
[393190525,1762307455076,-176.84,0.00036834,2]
[393190526,1762307455084,-176.84,0.00036834,2]
[393190527,1762307455094,-176.84,0.00036834,2]
[393190528,1762307455103,-176.84,0.00036834,2]
[393190529,1762307455112,-176.84,0.00036834,2]
[393190530,1762307455121,-176.84,0.00036834,2]
[393190531,1762307455131,-176.84,0.00036834,2]
[393190532,1762307455141,-176.84,0.00036834,2]
[393190533,1762307455150,-176.84,0.00036834,2]
[393190534,1762307455159,-176.84,0.00036834,2]
[393190535,1762307455169,-176.84,0.00036834,2]
[393190536,1762307455178,-176.84,0.00036834,2]
[393190537,1762307455187,-176.84,0.00036834,2]
[393190538,1762307455198,-176.84,0.00036834,2]
[393190539,1762307455207,-176.84,0.00036834,2]
[393190540,1762307455217,-176.84,0.00036834,2]
[393190541,1762307455226,-308.69,0.00036834,2]
[393190542,1762307455235,-548.97,0.00036834,2]
[393190543,1762307455244,-548.97,0.00036834,2]